bitfinex/quotes_BTCUSD_20250226
["timestamp","ask_amount","ask_price","bid_price","bid_amount"]
[1740541711909,0.168023,89273.0,89269.0,0.0095047]
[1740541712101,0.224022,89277.0,89270.0,0.00933515]
[1740541712304,0.168021,89275.0,89270.0,0.00933515]
[1740541712589,0.168018,89276.0,89270.0,0.00933515]
[1740541712783,0.00084367,89282.0,89270.0,0.00933515]
[1740541712784,0.168015,89278.0,89270.0,0.00933515]
[1740541713349,0.00084367,89282.0,89270.0,0.00933515]
[1740541713570,0.168027,89271.0,89270.0,0.00933515]
[1740541714785,0.168027,89271.0,89270.0,0.01633515]
[1740541715203,0.168027,89271.0,89270.0,0.01333515]
[1740541715386,0.168027,89271.0,89270.0,0.00933515]
[1740541715585,0.168027,89271.0,89270.0,0.01233515]
[1740541715765,0.168019,89276.0,89270.0,0.01133515]
[1740541716172,0.00084367,89282.0,89270.0,0.01233515]
[1740541716393,0.168027,89271.0,89270.0,0.01233515]
[1740541717086,0.168027,89271.0,89270.0,0.01033515]
[1740541717293,0.168027,89271.0,89270.0,0.01233515]
[1740541717616,0.168027,89271.0,89270.0,0.01133515]
[1740541718020,0.168027,89271.0,89270.0,0.01633515]
[1740541718782,0.168027,89271.0,89270.0,0.01933515]
[1740541719165,0.168027,89271.0,89270.0,0.01433515]
[1740541719980,0.168027,89271.0,89270.0,0.00933515]
[1740541720188,0.168027,89271.0,89270.0,0.01333515]
[1740541720384,0.168027,89271.0,89270.0,0.007]
[1740541720783,0.168027,89271.0,89270.0,0.003]
[1740541720994,0.168031,89269.0,89268.0,0.0008468]
[1740541722256,0.168031,89269.0,89268.0,0.0038468]
[1740541722476,0.223992,89289.0,89268.0,0.01233148]
[1740541722683,0.168021,89275.0,89270.0,0.0786]
[1740541723214,0.168011,89280.0,89270.0,0.0786]
[1740541723403,0.22485267,89282.0,89270.0,0.0786]
[1740541723582,0.168008,89281.0,89271.0,0.0137915]
[1740541723778,0.00084367,89282.0,89271.0,0.0137915]
[1740541723989,0.168016,89278.0,89271.0,0.0137915]
[1740541724977,0.168016,89278.0,89271.0,0.0177915]
[1740541725475,0.168012,89279.0,89271.0,0.0167915]
[1740541725688,0.168012,89279.0,89272.0,0.01461383]
[1740541725883,0.00084367,89282.0,89273.0,0.0799]
[1740541726089,0.2243697,89307.0,89273.0,0.24949106]
[1740541726090,0.223974,89296.0,89273.0,0.24949106]
[1740541726292,0.167992,89290.0,89274.0,0.0799]
[1740541726516,0.00100004,89295.0,89276.0,0.0799]
[1740541726794,0.00100004,89295.0,89271.0,0.227035]
[1740541726795,0.168025,89272.0,89271.0,0.006]
[1740541726956,0.224026,89275.0,89259.0,0.0776]
[1740541727161,0.168031,89269.0,89259.0,0.0776]
[1740541727337,0.16903104,89269.0,89259.0,0.0776]
[1740541728082,0.16903104,89269.0,89256.0,0.0454]
[1740541728483,0.16915699,89269.0,89268.0,0.0028468]
[1740541729741,0.16915699,89269.0,89268.0,0.0058468]
[1740541730206,0.16915699,89269.0,89268.0,0.0028468]
[1740541730614,0.16915699,89269.0,89268.0,0.0018468]
[1740541730800,0.16915699,89269.0,89268.0,0.0048468]
[1740541731595,0.16915699,89269.0,89268.0,0.0018468]
[1740541735561,0.00012595,89269.0,89268.0,0.0804468]
[1740541735937,0.16815695,89269.0,89268.0,0.0008468]
[1740541736135,0.16915699,89269.0,89268.0,0.0018468]
[1740541736257,0.16815695,89269.0,89268.0,0.0018468]
[1740541736464,0.16815695,89269.0,89268.0,0.0008468]
[1740541736926,0.16815695,89269.0,89268.0,0.0038468]
[1740541737342,0.16815695,89269.0,89268.0,0.0008468]
[1740541738604,0.16815695,89269.0,89268.0,0.0018468]
[1740541740131,0.16815695,89269.0,89268.0,0.0008468]
[1740541740787,0.16915695,89269.0,89268.0,0.0008468]
[1740541740994,0.16815695,89269.0,89268.0,0.0008468]
[1740541742035,0.17015695,89269.0,89268.0,0.0008468]
[1740541754696,0.16815695,89269.0,89268.0,0.0008468]
[1740541755235,0.17015695,89269.0,89268.0,0.0008468]
[1740541755563,0.17115695,89269.0,89268.0,0.0008468]
[1740541755968,0.17115695,89269.0,89268.0,0.0018468]
[1740541756897,0.16815695,89269.0,89268.0,0.0008468]
[1740541757339,0.16815695,89269.0,89268.0,0.01297148]
[1740541757708,0.16815695,89269.0,89268.0,0.0008468]
[1740541757912,0.16815695,89269.0,89268.0,0.0038468]
[1740541758121,0.16815695,89269.0,89268.0,0.0048468]
[1740541758506,0.16815695,89269.0,89268.0,0.0038468]
[1740541758888,0.16815695,89269.0,89268.0,0.0068468]
[1740541759097,0.00012595,89269.0,89268.0,0.01957148]
[1740541759432,0.16815695,89269.0,89268.0,0.0068468]
[1740541761403,0.16815695,89269.0,89268.0,0.0038468]
[1740541761756,0.16815695,89269.0,89268.0,0.0018468]
[1740541762092,0.16815695,89269.0,89268.0,0.0008468]
[1740541762478,0.16815695,89269.0,89268.0,0.0018468]
[1740541762996,0.16815695,89269.0,89268.0,0.01307148]
[1740541764737,0.16815695,89269.0,89268.0,0.01507148]
[1740541764919,0.16815695,89269.0,89268.0,0.01707148]
[1740541765497,0.16815695,89269.0,89268.0,0.01507148]
[1740541765730,0.16815695,89269.0,89268.0,0.01807148]
[1740541767889,0.16815695,89269.0,89268.0,0.0058468]
[1740541768948,0.1706508,89271.0,89268.0,0.0058468]
[1740541769127,0.1706508,89271.0,89268.0,0.00626707]
[1740541769551,0.168031,89269.0,89268.0,0.00626707]
[1740541770116,0.168031,89269.0,89268.0,0.00426707]
[1740541770325,0.168031,89269.0,89268.0,0.00526707]
[1740541770550,0.168031,89269.0,89268.0,0.00226707]
[1740541770780,0.168031,89269.0,89268.0,0.00126707]
[1740541770969,0.18561087,89269.0,89268.0,0.00526707]
[1740541771293,0.168031,89269.0,89268.0,0.00526707]
[1740541771606,0.168031,89269.0,89268.0,0.00326707]
[1740541771898,0.168031,89269.0,89268.0,0.00626707]
[1740541775330,0.168031,89269.0,89268.0,0.00326707]
[1740541775694,0.168031,89269.0,89268.0,0.00426707]
[1740541776099,0.168031,89269.0,89268.0,0.00226707]
[1740541777033,0.22430238,89269.0,89268.0,0.00126707]
[1740541777251,0.22430238,89269.0,89268.0,0.00226707]
[1740541777810,0.22430238,89269.0,89268.0,0.00126707]
[1740541778129,0.22630238,89269.0,89268.0,0.00126707]
[1740541778701,0.170031,89269.0,89268.0,0.00126707]
[1740541779852,0.168031,89269.0,89268.0,0.00126707]
[1740541780429,0.171031,89269.0,89268.0,0.00126707]
[1740541781070,0.47751754,89269.0,89268.0,7e-08]
[1740541781272,0.47971754,89269.0,89268.0,7e-08]
[1740541781478,0.61784596,89269.0,89268.0,7e-08]
[1740541782229,0.71784596,89269.0,89268.0,7e-08]
[1740541782996,0.61036352,89269.0,89268.0,7e-08]
[1740541783495,0.61036352,89269.0,89268.0,0.00100007]
[1740541783951,0.168076,89245.0,89244.0,0.077]
[1740541784098,0.168087,89239.0,89238.0,0.0806]
[1740541785371,0.16850668,89239.0,89238.0,0.0806]
[1740541787027,0.16842122,89239.0,89238.0,0.0806]
[1740541787240,0.21976137,89241.0,89238.0,0.0836]
[1740541787434,0.168087,89239.0,89238.0,0.08372595]
[1740541787990,0.168087,89239.0,89238.0,0.08772595]
[1740541789626,0.168087,89239.0,89238.0,0.00712595]
[1740541790442,0.168087,89239.0,89238.0,0.00412595]
[1740541790703,0.168087,89239.0,89238.0,0.00012595]
[1740541793217,0.168087,89239.0,89238.0,0.00097435]
[1740541794334,0.18362785,89239.0,89238.0,0.00097435]
[1740541794490,0.27883039,89239.0,89238.0,0.00097435]
[1740541794685,0.169087,89239.0,89238.0,0.00097435]
[1740541795097,0.170087,89239.0,89238.0,0.00097435]
[1740541795499,0.169087,89239.0,89238.0,0.00097435]
[1740541795908,0.172087,89239.0,89238.0,0.00097435]
[1740541796310,0.176087,89239.0,89238.0,0.00097435]
[1740541796510,0.172087,89239.0,89238.0,0.00097435]
[1740541796863,0.176087,89239.0,89238.0,0.00097435]
[1740541797414,0.28755822,89239.0,89238.0,0.00097435]
[1740541797611,0.28755822,89239.0,89238.0,3.5e-07]
[1740541797831,0.40829907,89239.0,89238.0,3.5e-07]
[1740541798018,0.29682785,89239.0,89238.0,3.5e-07]
[1740541798213,0.31813239,89239.0,89238.0,3.5e-07]
[1740541798623,0.22213239,89239.0,89238.0,3.5e-07]
[1740541798842,0.32213239,89239.0,89238.0,3.5e-07]
[1740541799044,0.31013239,89239.0,89238.0,3.5e-07]
[1740541799246,0.42398935,89239.0,89238.0,3.5e-07]
[1740541799448,0.43298935,89239.0,89238.0,3.5e-07]
[1740541799697,0.62093504,89239.0,89238.0,3.5e-07]
[1740541799836,0.62793504,89239.0,89238.0,3.5e-07]
[1740541800592,0.01454085,89238.0,89216.0,0.0467]
[1740541800798,0.168129,89217.0,89216.0,0.04711968]
[1740541805901,0.168127,89218.0,89217.0,0.0759]
[1740541808555,0.224159,89222.0,89217.0,0.0759]
[1740541808755,0.168121,89222.0,89219.0,0.0769]
[1740541808955,0.168123,89220.0,89219.0,0.0769]
[1740541809358,0.168123,89220.0,89219.0,0.08958681]
[1740541810289,0.168123,89220.0,89219.0,0.0769]
[1740541811439,0.224156,89224.0,89219.0,0.0769]
[1740541811640,0.224141,89230.0,89221.0,0.0801]
[1740541811842,0.224127,89235.0,89221.0,0.0801]
[1740541812047,0.224145,89228.0,89221.0,0.0801]
[1740541812300,0.168114,89225.0,89222.0,0.0467]
[1740541812816,0.168114,89225.0,89223.0,0.0801]
[1740541812979,0.224147,89227.0,89224.0,0.0467]
[1740541813321,0.168114,89226.0,89225.0,0.0829]
[1740541813765,0.16811,89228.0,89225.0,0.0819]
[1740541813940,0.224116,89240.0,89226.0,0.01286]
[1740541814167,0.168109,89228.0,89227.0,0.0477]
[1740541814367,0.168109,89228.0,89227.0,0.0457]
[1740541814595,0.18402577,89230.0,89227.0,0.0457]
[1740541814714,0.168109,89228.0,89227.0,0.0447]
[1740541815344,0.224139,89231.0,89227.0,0.0447]
[1740541815545,0.170109,89228.0,89227.0,0.0447]
[1740541816916,0.168109,89228.0,89227.0,0.123]
[1740541817341,0.224139,89231.0,89216.0,0.00126808]
[1740541817524,0.168127,89218.0,89217.0,0.0783]
[1740541817937,0.168127,89218.0,89217.0,0.1241]
[1740541818713,0.168127,89218.0,89217.0,0.1251]
[1740541820016,0.168127,89218.0,89217.0,0.1241]
[1740541820603,0.168127,89218.0,89217.0,0.1251]
[1740541826774,0.2521881,89218.0,89217.0,0.001]
[1740541827562,0.168127,89218.0,89217.0,0.001]
[1740541828387,0.168129,89217.0,89216.0,0.00126808]
[1740541831636,0.224141,89230.0,89218.0,0.0464]
[1740541831855,0.168114,89225.0,89220.0,0.0783]
[1740541831975,0.0004242,89238.0,89220.0,0.0783]
[1740541832185,0.168121,89221.0,89220.0,0.0783]
[1740541834061,0.168117,89224.0,89220.0,0.0783]
[1740541834263,0.168117,89224.0,89220.0,0.0793]
[1740541834618,0.224145,89228.0,89220.0,0.09199681]
[1740541834841,0.2245643,89230.0,89220.0,0.09099681]
[1740541835059,0.2245643,89230.0,89222.0,0.0788]
[1740541835060,0.168111,89227.0,89222.0,0.0788]
[1740541835383,0.0004243,89230.0,89224.0,0.0766]
[1740541835741,0.1685293,89230.0,89224.0,0.0766]
[1740541835937,0.1685293,89230.0,89224.0,0.08984265]
[1740541836143,0.0004243,89230.0,89226.0,0.0755]
[1740541836349,0.0004243,89230.0,89229.0,0.217906]
[1740541836550,0.0004243,89230.0,89229.0,0.1305]
[1740541836750,0.0004243,89230.0,89229.0,0.21704194]
[1740541837150,0.0004243,89230.0,89229.0,0.38514794]
[1740541837356,0.0004243,89230.0,89229.0,0.298606]
[1740541837567,0.0004243,89230.0,89229.0,0.1305]
[1740541837771,0.0004243,89230.0,89229.0,0.13206868]
[1740541838101,0.0014243,89230.0,89229.0,0.13406868]
[1740541838266,0.0014243,89230.0,89229.0,0.19698478]
[1740541838467,0.0024243,89230.0,89229.0,0.19698478]
[1740541838932,0.0014243,89230.0,89229.0,0.19698478]
[1740541839313,0.0004243,89230.0,89229.0,0.35876635]
[1740541839519,0.0014243,89230.0,89229.0,0.35819767]
[1740541840126,0.0024243,89230.0,89229.0,0.36319767]
[1740541840696,0.11962718,89247.0,89230.0,0.0753]
[1740541840971,0.46554685,89285.0,89234.0,0.0753]
[1740541840972,0.336044,89274.0,89234.0,0.0753]
[1740541841316,0.168091,89238.0,89234.0,0.0753]
[1740541841520,0.168091,89237.0,89234.0,0.0753]
[1740541841721,0.168091,89237.0,89235.0,0.0341717]
[1740541842176,0.168088,89239.0,89235.0,0.0341717]
[1740541842360,0.16809,89238.0,89235.0,0.0341717]
[1740541842831,0.16809,89238.0,89234.0,0.0753]
[1740541842832,0.168095,89235.0,89234.0,0.0753]
[1740541844272,0.002,89235.0,89234.0,0.092905]
[1740541847024,0.224107,89243.0,89234.0,0.092905]
[1740541847230,0.22409,89250.0,89234.0,0.092905]
[1740541847428,0.168087,89240.0,89235.0,0.0140605]
[1740541847867,0.168084,89241.0,89235.0,0.0140605]
[1740541848251,0.168084,89241.0,89236.0,0.01060142]
[1740541848427,0.168084,89241.0,89235.0,0.0140605]
[1740541848888,0.224078,89255.0,89235.0,0.0140605]
[1740541849043,0.224078,89255.0,89234.0,0.088905]
[1740541849044,0.168078,89244.0,89234.0,0.088905]
[1740541849393,0.168078,89244.0,89237.0,0.0769]
[1740541849589,0.16808,89243.0,89237.0,0.0769]
[1740541849794,0.224057,89263.0,89238.0,0.0138205]
[1740541850019,0.18573876,89263.0,89238.0,0.02441834]
[1740541850175,0.168084,89242.0,89238.0,0.02441834]
[1740541850336,0.168084,89242.0,89238.0,0.01059784]
[1740541850569,0.392184,89244.0,89238.0,0.01059784]
[1740541850807,0.16808,89243.0,89237.0,0.0789]
[1740541851013,0.16808,89243.0,89237.0,0.0769]
[1740541851415,0.2241,89246.0,89238.0,0.002]
[1740541851633,0.14656084,89314.0,89238.0,0.0140205]
[1740541851815,0.168086,89240.0,89239.0,0.01059604]
[1740541852396,0.168087,89239.0,89238.0,0.0140205]
[1740541853029,0.168089,89238.0,89237.0,0.0769]
[1740541853827,0.168089,89238.0,89237.0,0.0779]
[1740541854032,0.168089,89238.0,89237.0,0.001]
[1740541854471,0.169089,89238.0,89237.0,0.002]
[1740541855045,0.170089,89238.0,89237.0,0.005]
[1740541855244,0.169089,89238.0,89237.0,0.003]
[1740541855444,0.224114,89241.0,89234.0,0.010605]
[1740541855703,0.168095,89235.0,89234.0,0.010605]
[1740541860328,0.168095,89235.0,89234.0,0.0114534]
[1740541861551,0.033708,89257.0,89235.0,0.1226]
[1740541861714,0.168075,89246.0,89236.0,0.0754]
[1740541861914,0.22407,89258.0,89236.0,0.0754]
[1740541862113,0.22407,89258.0,89238.0,0.0754]
[1740541862567,0.29194569,89268.0,89238.0,0.0754]
[1740541862809,0.168087,89239.0,89238.0,0.0754]
[1740541862949,0.10389446,89241.0,89238.0,0.0754]
[1740541863146,0.224092,89249.0,89239.0,0.01340534]
[1740541863373,0.168086,89240.0,89239.0,0.01340534]
[1740541863771,0.168087,89239.0,89238.0,0.0754]
[1740541863976,0.168093,89236.0,89235.0,0.0472]
[1740541864981,0.168095,89235.0,89234.0,0.0114534]
[1740541867169,0.168095,89235.0,89234.0,0.0144534]
[1740541867765,0.168095,89235.0,89234.0,0.0114534]
[1740541871787,0.168095,89235.0,89234.0,0.0124534]
[1740541873905,0.168095,89235.0,89234.0,0.0114534]
[1740541874283,0.168095,89235.0,89234.0,0.0134534]
[1740541874792,0.29194569,89254.0,89234.0,0.0114534]
[1740541874991,0.168095,89235.0,89234.0,0.0114534]
[1740541875195,0.168095,89235.0,89234.0,0.0144534]
[1740541875592,0.168095,89235.0,89234.0,0.0124534]
[1740541875880,0.168095,89235.0,89234.0,0.0114534]
[1740541876237,0.22412,89238.0,89234.0,0.0124534]
[1740541876411,0.168095,89235.0,89234.0,0.0114534]
[1740541876838,0.168095,89235.0,89234.0,0.0124534]
[1740541877054,0.168095,89235.0,89234.0,0.0114534]
[1740541878272,0.168095,89235.0,89234.0,0.02057874]
[1740541879074,0.168095,89235.0,89234.0,0.14507874]
[1740541879276,0.168095,89235.0,89234.0,0.14407874]
[1740541879497,0.0004242,89241.0,89235.0,0.0769]
[1740541879810,0.0004242,89241.0,89237.0,0.0769]
[1740541880034,0.224114,89240.0,89237.0,0.0769]
[1740541880171,0.168089,89238.0,89237.0,0.0769]
[1740541880380,0.168088,89239.0,89237.0,0.0769]
[1740541880590,0.168089,89238.0,89237.0,0.09284866]
[1740541881233,0.0004242,89241.0,89237.0,0.09284866]
[1740541881473,0.168086,89240.0,89237.0,0.09284866]
[1740541881623,0.0004242,89241.0,89234.0,0.0580534]
[1740541881833,0.168095,89235.0,89234.0,0.0114534]
[1740541886468,0.224117,89239.0,89234.0,0.0114534]
[1740541886629,0.168095,89235.0,89234.0,0.0114534]
[1740541890518,0.25222464,89235.0,89234.0,0.0114534]
[1740541891036,0.168095,89235.0,89234.0,0.0114534]
[1740541894372,0.0004242,89237.0,89234.0,0.0114534]
[1740541894771,0.168095,89235.0,89234.0,0.0114534]
[1740541900861,0.168095,89235.0,89234.0,0.1396534]
[1740541924421,1.0004242,89237.0,89234.0,0.0114534]
[1740541924664,1.0004242,89237.0,89236.0,0.1226]
[1740541925736,1.0014242,89237.0,89236.0,0.1226]
[1740541926016,1.0004242,89237.0,89236.0,0.1226]
[1740541926285,1.1705152,89237.0,89236.0,0.1236]
[1740541926493,1.1705152,89237.0,89236.0,0.13710534]
[1740541926645,1.0024242,89237.0,89236.0,0.13710534]
[1740541929253,1.0024242,89237.0,89236.0,0.30088691]
[1740541929681,1.0024242,89237.0,89236.0,0.31427224]
[1740541929834,1.02295042,89237.0,89236.0,0.31427224]
[1740541935355,1.02295042,89237.0,89236.0,0.30088691]
[1740541935575,1.02295042,89237.0,89236.0,0.31427224]
[1740541937033,1.19104142,89237.0,89236.0,0.31427224]
[1740541937251,1.02295042,89237.0,89236.0,0.31427224]
[1740541937623,1.19104142,89237.0,89236.0,0.13698533]
[1740541937789,1.19104142,89237.0,89236.0,0.1236]
[1740541938395,1.19004142,89237.0,89236.0,0.1236]
[1740541938903,1.19104142,89237.0,89236.0,0.1246]
[1740541939317,1.19104142,89237.0,89236.0,0.13820534]
[1740541940143,1.19004142,89237.0,89236.0,0.13720534]
[1740541940738,1.19004142,89237.0,89236.0,0.13820534]
[1740541944581,0.92136578,89237.0,89236.0,0.13820534]
[1740541944983,0.92136578,89237.0,89236.0,0.1246]
[1740541945122,0.92136578,89237.0,89236.0,0.002]
[1740541945325,0.224132,89233.0,89220.0,0.16378157]
[1740541945528,0.168123,89220.0,89219.0,0.0451]
[1740541947798,0.169123,89220.0,89219.0,0.0451]
[1740541948098,0.170123,89220.0,89219.0,0.0451]
[1740541948331,0.170123,89220.0,89219.0,0.1258]
[1740541948534,0.168123,89220.0,89219.0,0.1258]
[1740541948742,0.169123,89220.0,89219.0,0.13850681]
[1740541948938,0.168123,89220.0,89219.0,0.15061221]
[1740541950574,0.169123,89220.0,89219.0,0.15061221]
[1740541950962,0.168123,89220.0,89219.0,0.1379054]
[1740541951163,0.169123,89220.0,89219.0,0.1379054]
[1740541951522,0.168123,89220.0,89219.0,0.1379054]
[1740541951969,0.169123,89220.0,89219.0,0.1379054]
[1740541952348,0.168123,89220.0,89219.0,0.1379054]
[1740541954333,0.168123,89220.0,89219.0,0.15182275]
[1740541954531,0.168123,89220.0,89219.0,0.1379054]
[1740541954736,0.168123,89220.0,89219.0,0.0121054]
[1740541955174,0.168129,89217.0,89214.0,0.0755]
[1740541957107,0.169129,89217.0,89214.0,0.0755]
[1740541960733,0.17725197,89219.0,89214.0,0.0755]
[1740541960889,0.168129,89217.0,89214.0,0.0755]
[1740541963378,0.168129,89217.0,89216.0,0.00226808]
[1740541963552,0.168129,89217.0,89216.0,0.00126808]
[1740541963958,0.169129,89217.0,89216.0,0.00226808]
[1740541966758,0.224157,89223.0,89216.0,0.00226808]
[1740541966962,0.168129,89217.0,89216.0,0.00226808]
[1740541967758,0.168129,89217.0,89216.0,0.00126808]
[1740541968161,0.169129,89217.0,89216.0,0.00126808]
[1740541982232,0.001,89217.0,89210.0,0.0478]
[1740541982433,0.168161,89200.0,89199.0,0.0008474]
[1740541983055,0.168161,89200.0,89199.0,0.1305474]
[1740541983493,0.168161,89200.0,89165.0,0.25780164]
[1740541983494,0.0840779,89200.0,89191.0,0.00804687]
[1740541983728,0.168184,89188.0,89187.0,0.0786]
[1740541984105,0.18645216,89188.0,89187.0,0.0786]
[1740541984472,0.24251516,89188.0,89181.0,0.0786]
[1740541984674,0.168195,89182.0,89181.0,0.0786]
[1740541985098,0.168195,89182.0,89181.0,0.07872603]
[1740541986233,0.168195,89182.0,89181.0,0.00212603]
[1740541986859,0.25496928,89182.0,89181.0,0.00212603]
[1740541987090,0.25496928,89182.0,89181.0,0.00012603]
[1740541987323,0.28560913,89182.0,89181.0,0.00212603]
[1740541987535,0.11741413,89182.0,89169.0,0.078]
[1740541987769,0.168201,89179.0,89178.0,0.0001261]
[1740541987978,0.27714085,89179.0,89178.0,1e-07]
[1740541989223,0.28414085,89179.0,89178.0,1e-07]
[1740541990716,0.29014085,89179.0,89178.0,1e-07]
[1740541993485,0.29982085,89179.0,89178.0,1e-07]
[1740541993850,0.38659513,89179.0,89178.0,1e-07]
[1740541994051,0.29982085,89179.0,89178.0,1e-07]
[1740541995866,0.29014085,89179.0,89178.0,1e-07]
[1740541996031,0.29982085,89179.0,89178.0,1e-07]
[1740541996612,0.181201,89179.0,89178.0,1e-07]
[1740542000177,0.181201,89179.0,89178.0,0.0798001]
[1740542000959,0.29505796,89179.0,89178.0,0.0798001]
[1740542001194,0.28805796,89179.0,89178.0,0.0798001]
[1740542001603,0.28305796,89179.0,89178.0,0.0798001]
[1740542002009,0.168214,89172.0,89171.0,0.0497]
[1740542003236,0.168214,89172.0,89171.0,0.0507]
[1740542003794,0.224278,89175.0,89171.0,0.0507]
[1740542003995,0.168214,89172.0,89171.0,0.0507]
[1740542004833,0.168214,89172.0,89171.0,0.0497]
[1740542005083,0.168214,89172.0,89171.0,0.1265]
[1740542005376,0.168214,89172.0,89171.0,0.1275]
[1740542005791,0.168214,89172.0,89171.0,0.1265]
[1740542006081,0.168214,89172.0,89171.0,0.1275]
[1740542006386,0.168214,89172.0,89171.0,0.0517]
[1740542006529,0.168214,89172.0,89171.0,0.002]
[1740542007734,0.168214,89172.0,89171.0,0.001]
[1740542008014,0.224278,89175.0,89163.0,0.0758]
[1740542008142,0.168229,89164.0,89163.0,0.0758]
[1740542010045,0.168231,89163.0,89162.0,0.0486478]
[1740542010802,0.168231,89163.0,89162.0,0.0008478]
[1740542025846,0.168231,89163.0,89162.0,0.0775478]
[1740542025985,0.168231,89163.0,89162.0,0.1238478]
[1740542026183,0.00856641,89164.0,89162.0,0.1238478]
[1740542026394,0.168231,89163.0,89162.0,0.1238478]
[1740542033010,0.2243,89167.0,89162.0,0.1238478]
[1740542033157,0.168231,89163.0,89162.0,0.1238478]
[1740542033677,0.168229,89165.0,89162.0,0.1238478]
[1740542033919,0.168229,89164.0,89162.0,0.1238478]
[1740542034533,0.168231,89163.0,89162.0,0.1238478]
[1740542035993,0.169231,89163.0,89162.0,0.1238478]
[1740542037567,0.170231,89163.0,89162.0,0.1238478]
[1740542038471,0.002,89163.0,89162.0,0.1238478]
[1740542038621,0.002,89163.0,89162.0,0.13623258]
[1740542039246,0.002,89163.0,89162.0,0.13780248]
[1740542039679,0.002,89163.0,89162.0,0.30603548]
[1740542039860,0.002,89163.0,89162.0,0.30446558]
[1740542040695,0.002,89163.0,89162.0,0.31900643]
[1740542041597,0.001,89163.0,89162.0,0.31900643]
[1740542041799,0.00055007,89179.0,89168.0,0.167221]
[1740542041995,0.00055007,89179.0,89170.0,0.0459]
[1740542042222,0.00055007,89179.0,89172.0,0.1324]
[1740542042357,0.00055007,89179.0,89173.0,0.13396971]
[1740542042741,0.00055007,89179.0,89173.0,0.17017631]
[1740542042920,0.00055007,89179.0,89173.0,0.17174602]
[1740542043468,0.00055007,89179.0,89173.0,0.18575575]
[1740542043887,0.00055007,89179.0,89173.0,0.19042566]
[1740542044331,0.00055007,89179.0,89173.0,0.18942566]
[1740542044973,0.0014243,89174.0,89173.0,0.20042566]
[1740542045583,0.0024243,89174.0,89173.0,0.20642566]
[1740542049361,0.0024243,89174.0,89173.0,0.20175575]
[1740542049669,0.0024243,89174.0,89173.0,0.54829017]
[1740542049966,0.0024243,89174.0,89173.0,0.51361406]
[1740542050508,0.0024243,89174.0,89173.0,0.50894415]
[1740542051154,0.0014243,89174.0,89173.0,0.50194415]
[1740542051417,0.0024243,89174.0,89173.0,0.50894415]
[1740542051638,0.0024243,89174.0,89173.0,0.61664631]
[1740542052047,0.0004243,89174.0,89173.0,0.59964631]
[1740542052246,0.0024243,89174.0,89173.0,0.61364631]
[1740542053915,0.00055007,89179.0,89178.0,0.168202]
[1740542054152,0.00055007,89179.0,89178.0,0.4009054]
[1740542054362,0.00055007,89179.0,89178.0,0.41333239]
[1740542055037,0.00055007,89179.0,89178.0,0.42033239]
[1740542056713,0.00055007,89179.0,89178.0,0.42733239]
[1740542059307,0.00055007,89179.0,89178.0,1.12771396]
[1740542068797,0.00055007,89179.0,89178.0,0.85497784]
[1740542069030,0.00055007,89179.0,89178.0,0.77377784]
[1740542070938,0.00055007,89179.0,89178.0,0.24184326]
[1740542074574,0.00055007,89179.0,89178.0,0.23717784]
[1740542077002,0.01720059,89191.0,89178.0,0.23717784]
[1740542077148,0.168195,89182.0,89179.0,0.0238875]
[1740542077487,0.168195,89182.0,89180.0,0.01399089]
[1740542077863,0.168195,89182.0,89179.0,0.0238875]
[1740542078199,0.168195,89182.0,89180.0,0.01399089]
[1740542078407,0.168193,89184.0,89181.0,0.02619086]
[1740542078612,0.168193,89184.0,89182.0,0.01398551]
[1740542078904,0.168189,89185.0,89181.0,0.02619086]
[1740542079329,0.168184,89189.0,89182.0,0.01398551]
[1740542079508,0.16818,89190.0,89182.0,0.01398551]
[1740542079707,0.0162761,89191.0,89183.0,0.02509276]
[1740542080027,0.168165,89198.0,89184.0,0.09058012]
[1740542080228,0.16537664,89207.0,89185.0,0.00156948]
[1740542080229,0.3,89197.0,89185.0,0.00156948]
[1740542080437,0.3,89197.0,89186.0,0.01172424]
[1740542080655,0.3,89197.0,89187.0,0.01554154]
[1740542081050,0.3,89197.0,89187.0,0.01397205]
[1740542081205,0.3,89198.0,89187.0,0.01397205]
[1740542081406,0.168176,89192.0,89188.0,0.01389585]
[1740542081611,0.168176,89192.0,89183.0,0.02509276]
[1740542081830,0.3,89198.0,89184.0,0.01398012]
[1740542082031,0.224234,89193.0,89184.0,0.01398012]
[1740542082233,0.224234,89193.0,89185.0,0.004]
[1740542082433,0.168181,89190.0,89185.0,0.004]
[1740542082707,0.01608103,89197.0,89186.0,0.003]
[1740542082893,0.3,89196.0,89186.0,0.00456948]
[1740542083093,0.3,89196.0,89184.0,0.03508743]
[1740542083345,0.3,89196.0,89185.0,0.005]
[1740542083554,0.16817,89195.0,89185.0,0.01897743]
[1740542083863,0.16817,89195.0,89186.0,0.003]
[1740542084256,0.168174,89194.0,89186.0,0.003]
[1740542084472,0.168174,89194.0,89186.0,0.005]
[1740542085199,0.168174,89194.0,89186.0,0.002]
[1740542086270,0.168174,89194.0,89186.0,0.004]
[1740542086705,0.168174,89194.0,89186.0,0.007]
[1740542086912,0.3,89196.0,89186.0,0.007]
[1740542086913,0.46817,89196.0,89186.0,0.007]
[1740542087623,0.168171,89195.0,89186.0,0.004]
[1740542087785,0.168175,89193.0,89186.0,0.007]
[1740542087988,0.168171,89195.0,89186.0,0.007]
[1740542088200,0.01608056,89197.0,89186.0,0.00856953]
[1740542088392,0.01608056,89197.0,89186.0,0.00456953]
[1740542088808,0.01608056,89197.0,89186.0,0.00756953]
[1740542089038,0.3,89196.0,89187.0,0.03931491]
[1740542089237,0.3,89196.0,89188.0,0.0015695]
[1740542089991,0.01608056,89197.0,89188.0,0.0015695]
[1740542090516,0.18424756,89197.0,89188.0,0.0015695]
[1740542090728,0.01608056,89197.0,89188.0,0.0015695]
[1740542090930,0.01608056,89197.0,89187.0,0.003]
[1740542091331,0.224225,89196.0,89187.0,0.003]
[1740542091531,0.168179,89191.0,89188.0,0.01862582]
[1740542091755,0.168179,89191.0,89188.0,0.002]
[1740542091961,0.168179,89191.0,89188.0,0.005]
[1740542092207,0.168179,89191.0,89188.0,0.003]
[1740542092500,0.224227,89195.0,89184.0,0.03108743]
[1740542092700,0.224227,89195.0,89185.0,0.0316869]
[1740542092876,0.168172,89194.0,89188.0,0.005]